bitfinex/quotes_SOLUSD_20230401
["timestamp","ask_amount","ask_price","bid_price","bid_amount"]
[1680341611537,21.58,20.99,20.982,17.0]
[1680341615649,21.58,20.99,20.98,10.0]
[1680341622758,21.58,20.99,20.982,10.0]
[1680341632580,21.58,20.99,20.984,10.0]
[1680341638086,21.58,20.99,20.982,10.0]
[1680341638281,21.58,20.99,20.984,10.0]
[1680341639789,21.58,20.99,20.985,17.0]
[1680341640285,116.69482088,20.999,20.986,10.0]
[1680341640286,116.6232,20.999,20.986,10.0]
[1680341640586,116.6232,20.999,20.987,16.93293467]
[1680341641367,116.6232,20.999,20.988,10.0]
[1680341642775,116.6232,20.999,20.99,10.0]
[1680341642984,116.6232,20.999,20.991,17.0]
[1680341643185,116.6232,20.999,20.992,10.0]
[1680341643387,116.6232,20.999,20.993,17.0]
[1680341644495,116.526463,20.999,20.993,17.0]
[1680341659290,116.526463,20.999,20.994,17.0]
[1680341659591,116.526463,20.999,20.991,17.0]
[1680341679717,123.67802367,20.999,20.991,17.0]
[1680341679903,10.0,20.998,20.991,17.0]
[1680341680209,7.15156067,20.997,20.991,17.0]
[1680341694839,116.526463,20.999,20.991,17.0]
[1680341695022,123.67802367,20.999,20.991,17.0]
[1680341701022,123.67802367,20.999,20.992,10.0]
[1680341701222,123.67802367,20.999,20.993,17.0]
[1680341702126,7.15156067,20.999,20.993,17.0]
[1680341702526,7.15156067,20.999,20.994,10.0]
[1680341702731,7.15156067,20.999,20.995,17.0]
[1680341704151,10.07162088,21.009,20.995,17.0]
[1680341704320,27.15156067,21.005,20.995,17.0]
[1680341704738,7.15156067,21.004,20.995,17.0]
[1680341704934,20.0,21.003,20.995,17.0]
[1680341706647,20.0,21.007,20.995,17.0]
[1680341706824,7.15156067,21.006,20.995,17.0]
[1680341707026,20.0,21.005,20.995,17.0]
[1680341715539,27.15156067,21.007,20.995,17.0]
[1680341727247,27.15156067,21.007,20.995,31.23195356]
[1680341730165,7.15156067,21.006,20.995,31.23195356]
[1680341730464,20.0,21.005,20.995,31.23195356]
[1680341736147,7.15156067,21.006,20.995,31.23195356]
[1680341736351,20.0,21.005,20.995,31.23195356]
[1680341742975,21.41,21.01,20.995,31.23195356]
[1680341743163,21.41,21.01,20.996,16.12734207]
[1680341743350,21.41,21.01,20.997,17.0]
[1680341743958,21.41,21.01,20.998,17.5526342]
[1680341744269,21.41,21.01,20.999,17.0]
[1680341744457,21.41,21.01,21.0,10.0]
[1680341744766,21.41,21.01,21.002,10.0]
[1680341744964,21.41,21.01,21.003,17.0]
[1680341745162,21.41,21.01,21.004,10.0]
[1680341745355,21.41,21.01,21.005,17.0]
[1680341747975,21.41,21.02,21.005,17.0]
[1680341748178,21.41,21.02,21.006,10.0]
[1680341748356,21.41,21.02,21.007,17.0]
[1680341748550,21.41,21.02,21.008,10.0]
[1680341748763,21.41,21.02,21.009,17.0]
[1680341751265,21.41,21.02,21.01,10.0]
[1680341751575,21.41,21.02,21.011,17.0]
[1680341752370,21.41,21.02,21.01,10.0]
[1680341752580,21.41,21.02,21.011,17.0]
[1680341757867,21.41,21.02,21.012,10.0]
[1680341758076,21.41,21.02,21.013,17.0]
[1680341765766,21.41,21.02,21.014,10.0]
[1680341766068,21.41,21.02,21.015,17.0]
[1680341766268,10.07162088,21.029,21.016,10.0]
[1680341766472,0.07162088,21.029,21.017,17.0]
[1680341766675,20.07162088,21.029,21.017,17.0]
[1680341769479,10.0,21.028,21.017,17.0]
[1680341769680,20.0,21.027,21.015,17.0]
[1680341769875,21.41,21.03,21.016,10.0]
[1680341770076,21.41,21.03,21.017,17.0]
[1680341770389,21.41,21.03,21.018,10.0]
[1680341770592,21.41,21.03,21.019,17.0]
[1680341773891,21.41,21.03,21.018,10.0]
[1680341774188,21.41,21.03,21.019,17.0]
[1680341786600,21.41,21.03,21.019,17.0]
[1680341800712,21.41,21.03,21.02,10.0]
[1680341801013,21.41,21.03,21.022,10.0]
[1680341801207,21.41,21.03,21.023,17.0]
[1680341819534,21.41,21.03,21.021,17.0]
[1680341819744,21.41,21.03,21.019,17.0]
[1680341831446,21.41,21.03,21.013,10.0]
[1680341831835,10.0,21.029,21.013,10.0]
[1680341832845,10.0,21.029,21.016,10.0]
[1680341833048,10.0,21.029,21.017,17.0]
[1680341839358,21.41,21.03,21.017,17.0]
[1680341840759,21.41,21.03,21.013,10.0]
[1680341840959,21.41,21.02,21.013,10.0]
[1680341842051,21.41,21.02,21.014,17.0]
[1680341848662,21.41,21.02,21.013,17.0]
[1680341849362,20.41,21.02,21.013,17.0]
[1680341849664,20.41,21.02,21.014,10.0]
[1680341849864,20.41,21.02,21.015,17.0]
[1680341850162,10.0,21.028,21.015,17.0]
[1680341850358,10.0,21.026,21.015,17.0]
[1680341850747,20.0,21.025,21.015,17.0]
[1680341853647,20.0,21.027,21.015,17.0]
[1680341853864,10.0,21.029,21.015,17.0]
[1680341854068,21.59,21.03,21.015,17.0]
[1680341854267,21.59,21.03,21.016,10.0]
[1680341854462,21.59,21.03,21.017,17.0]
[1680341854761,21.59,21.03,21.018,10.0]
[1680341854966,21.59,21.03,21.019,17.0]
[1680341865762,21.59,21.03,21.02,10.0]
[1680341865959,21.59,21.03,21.021,17.0]
[1680341866461,21.59,21.03,21.022,10.0]
[1680341866660,21.59,21.03,21.024,10.0]
[1680341866861,21.59,21.03,21.025,17.0]
[1680341870582,21.59,21.03,21.023,17.0]
[1680341879685,21.59,21.03,21.02,10.0]
[1680341879871,21.59,21.03,21.017,10.0]
[1680341881292,21.59,21.03,21.016,10.0]
[1680341881475,10.0,21.029,21.016,10.0]
[1680341882388,21.59,21.03,21.016,10.0]
[1680341882688,21.59,21.03,21.018,10.0]
[1680341882893,21.59,21.03,21.019,17.0]
[1680341887595,21.59,21.03,21.02,10.0]
[1680341887894,21.59,21.03,21.021,17.0]
[1680341900098,21.59,21.04,21.023,10.0]
[1680341900302,10.0,21.039,21.025,10.0]
[1680341900483,10.0,21.039,21.026,17.0]
[1680341900677,10.0,21.039,21.027,10.0]
[1680341900890,10.0,21.039,21.028,17.0]
[1680341902490,35.93850659,21.04,21.028,17.0]
[1680341902689,10.0,21.039,21.028,17.0]
[1680341903594,10.0,21.039,21.026,17.0]
[1680341905001,10.0,21.039,21.025,10.0]
[1680341905203,10.0,21.039,21.026,17.0]
[1680341905788,10.0,21.039,21.027,17.0]
[1680341905995,10.0,21.037,21.026,17.0]
[1680341906199,20.0,21.036,21.026,17.0]
[1680341909311,20.0,21.036,21.024,17.0]
[1680341909510,26.8,21.03,21.024,17.0]
[1680341920196,20.0,21.036,21.024,17.0]
[1680341920396,20.0,21.036,21.025,17.0]
[1680341920397,26.8,21.03,21.025,17.0]
[1680341920612,26.8,21.03,21.02,10.0]
[1680341921801,26.8,21.03,21.021,17.0]
[1680341928422,26.8,21.03,21.019,17.0]
[1680341930629,26.8,21.03,21.02,10.0]
[1680341930923,26.8,21.03,21.021,17.0]
[1680341933011,26.8,21.03,21.022,10.0]
[1680341933328,26.8,21.03,21.024,10.0]
[1680341933533,26.8,21.03,21.025,17.0]
[1680341934834,26.8,21.03,21.023,17.0]
[1680341942937,20.0,21.036,21.024,10.0]
[1680341943237,53.85,21.04,21.025,17.0]
[1680341943424,53.85,21.04,21.026,10.0]
[1680341943629,53.85,21.04,21.027,17.0]
[1680341943923,53.85,21.04,21.028,10.0]
[1680341944131,53.85,21.04,21.029,17.0]
[1680341962156,10.0,21.039,21.029,17.0]
[1680341962334,10.0,21.039,21.03,17.0]
[1680341962535,10.0,21.039,21.028,10.0]
[1680341962734,10.0,21.039,21.029,17.0]
[1680341964951,10.0,21.039,21.027,17.0]
[1680341967154,20.0,21.038,21.021,115.3634]
[1680341967542,21.55,21.03,21.021,115.3634]
[1680341968547,21.55,21.03,21.022,17.0]
[1680341972441,26.94,21.03,21.022,17.0]
[1680341997375,26.94,21.03,21.023,10.0]
[1680341997772,26.94,21.03,21.024,17.0]
[1680342014797,26.94,21.03,21.025,10.0]
[1680342015000,26.94,21.03,21.026,17.0]
[1680342015199,30.0,21.038,21.026,17.0]
[1680342015698,20.0,21.038,21.026,17.0]
[1680342017087,20.0,21.039,21.026,17.0]
[1680342017299,10.0,21.038,21.026,17.0]
[1680342017595,20.0,21.037,21.026,17.0]
[1680342019799,10.0,21.036,21.024,17.0]
[1680342019986,26.8,21.03,21.024,17.0]
[1680342020187,26.8,21.03,21.023,10.0]
[1680342021291,26.8,21.03,21.024,17.0]
[1680342024807,26.8,21.03,21.025,10.0]
[1680342025008,26.8,21.03,21.026,17.0]
[1680342025208,10.0,21.038,21.026,17.0]
[1680342028905,10.0,21.038,21.022,13.9144162]
[1680342029112,10.0,21.038,21.015,10.0]
[1680342029113,26.8,21.03,21.017,16.03123877]
[1680342031117,26.8,21.03,21.021,17.0]
[1680342032517,21.55,21.03,21.021,17.0]
[1680342040705,21.55,21.03,21.022,10.0]
[1680342040900,21.55,21.03,21.023,17.0]
[1680342041120,21.55,21.03,21.024,10.0]
[1680342041325,21.55,21.03,21.025,17.0]
[1680342076336,21.55,21.04,21.026,10.0]
[1680342076542,21.55,21.04,21.027,17.0]
[1680342076942,21.55,21.04,21.028,10.0]
[1680342077139,21.55,21.04,21.03,10.0]
[1680342077347,21.55,21.04,21.031,17.0]
[1680342080056,21.55,21.04,21.028,10.0]
[1680342080057,21.55,21.04,21.029,17.0]
[1680342085562,21.55,21.04,21.03,10.0]
[1680342085761,21.55,21.04,21.032,10.0]
[1680342086257,21.55,21.04,21.033,17.0]
[1680342087859,21.55,21.04,21.028,10.0]
[1680342089262,21.55,21.04,21.029,17.0]
[1680342095066,21.55,21.04,21.03,10.0]
[1680342095267,21.55,21.04,21.031,17.0]
[1680342125389,21.55,21.04,21.032,17.0]
[1680342125590,21.55,21.04,21.029,17.0]
[1680342130396,21.55,21.04,21.03,10.0]
[1680342130582,21.55,21.04,21.031,17.0]
[1680342138401,11.55,21.04,21.031,17.0]
[1680342145704,11.55,21.04,21.028,10.0]
[1680342146001,11.55,21.04,21.024,10.0]
[1680342146507,10.0,21.039,21.024,10.0]
[1680342147109,21.55,21.03,21.025,17.0]
[1680342149503,21.55,21.03,21.023,117.9426]
[1680342149809,21.55,21.03,21.02,29.59202071]
[1680342149995,21.55,21.03,21.022,20.0]
[1680342150706,21.55,21.03,21.023,10.0]
[1680342150911,21.55,21.03,21.024,17.0]
[1680342151408,17.15211451,21.03,21.024,17.0]
[1680342152505,17.15211451,21.03,21.024,10.0]
[1680342152704,17.15211451,21.03,21.025,17.0]
[1680342155710,17.15211451,21.03,21.023,17.0]
[1680342159509,17.15211451,21.03,21.023,27.0]
[1680342160212,17.15211451,21.03,21.023,10.0]
[1680342160518,17.15211451,21.03,21.024,17.0]
[1680342169232,17.15211451,21.03,21.025,10.0]
[1680342169432,17.15211451,21.03,21.026,17.0]
[1680342169621,21.55,21.04,21.027,10.0]
[1680342169824,21.55,21.04,21.029,10.0]
[1680342170024,21.55,21.04,21.03,17.0]
[1680342173321,21.55,21.04,21.031,10.0]
[1680342173721,21.55,21.04,21.032,17.0]
[1680342180821,21.55,21.04,21.03,17.0]
[1680342185251,21.55,21.04,21.031,10.0]
[1680342185445,21.55,21.04,21.032,17.0]
[1680342193244,21.55,21.04,21.03,17.0]
[1680342210964,21.55,21.04,21.031,10.0]
[1680342211161,21.55,21.04,21.032,17.0]
[1680342215163,21.55,21.04,21.031,10.0]
[1680342215466,21.55,21.04,21.029,10.0]
[1680342215655,21.55,21.04,21.022,30.0]
[1680342215866,10.0,21.039,21.022,30.0]
[1680342216946,10.0,21.039,21.027,27.0]
[1680342218762,10.0,21.039,21.027,17.0]
[1680342218967,10.0,21.039,21.022,20.0]
[1680342219148,21.55,21.03,21.022,20.0]
[1680342220874,21.55,21.03,21.023,17.0]
[1680342221171,21.55,21.03,21.023,27.0]
[1680342226678,21.55,21.03,21.021,109.7474]
[1680342226975,21.55,21.03,21.019,117.1463]
[1680342228480,21.55,21.03,21.021,10.0]
[1680342228659,21.55,21.03,21.022,17.0]
[1680342230569,21.55,21.03,21.023,10.0]
[1680342230882,21.55,21.03,21.024,17.0]
[1680342231175,21.55,21.03,21.025,10.0]
[1680342231378,21.55,21.03,21.026,17.0]
[1680342231557,10.0,21.039,21.026,17.0]
[1680342231980,10.0,21.037,21.026,17.0]
[1680342232180,20.0,21.036,21.026,17.0]
[1680342234985,19.5,21.036,21.026,17.0]
[1680342238083,19.5,21.036,21.024,17.0]
[1680342238486,19.5,21.036,21.025,10.0]
[1680342238784,19.5,21.036,21.026,17.0]
[1680342242790,19.5,21.036,21.024,17.0]
[1680342245306,26.74,21.03,21.024,17.0]
[1680342250181,26.74,21.03,21.023,17.0]
[1680342254482,26.74,21.03,21.022,17.0]
[1680342267389,26.74,21.03,21.023,10.0]
[1680342267588,63.56,21.04,21.025,10.0]
[1680342267819,63.56,21.04,21.027,10.0]
[1680342268308,63.56,21.04,21.028,17.0]
[1680342269412,53.56,21.04,21.028,17.0]
[1680342274411,53.56,21.04,21.028,17.0]
[1680342274718,10.0,21.039,21.028,17.0]
[1680342277815,53.56,21.04,21.028,17.0]
[1680342285225,10.0,21.039,21.028,17.0]
[1680342286325,53.56,21.04,21.028,17.0]
[1680342286911,53.56,21.04,21.029,10.0]
[1680342287123,53.56,21.04,21.03,17.0]
[1680342290825,53.56,21.04,21.031,10.0]
[1680342291014,53.56,21.04,21.033,10.0]
[1680342291419,53.56,21.04,21.034,17.0]
[1680342296532,26.73,21.04,21.034,17.0]
[1680342297328,68.5807,21.043,21.034,17.0]
[1680342297533,21.33,21.04,21.034,17.0]
[1680342299734,21.33,21.05,21.034,17.0]
[1680342300528,21.33,21.05,21.035,10.0]
[1680342300725,21.33,21.05,21.036,17.0]
[1680342300937,21.33,21.05,21.037,10.0]
[1680342301132,21.33,21.05,21.038,17.0]
[1680342301336,21.33,21.05,21.039,10.0]
[1680342301634,21.33,21.05,21.041,10.0]
[1680342301821,21.33,21.05,21.042,17.0]
[1680342302537,53.62,21.05,21.042,17.0]
[1680342304638,51.12,21.05,21.04,17.0]
[1680342305143,51.12,21.05,21.039,10.0]
[1680342306417,51.12,21.05,21.04,17.0]
[1680342311738,51.12,21.05,21.037,10.0]
[1680342312046,26.12,21.05,21.034,10.0]
[1680342312346,10.0,21.049,21.034,10.0]
[1680342313726,10.0,21.049,21.032,113.0303]
[1680342313727,10.0,21.047,21.033,118.66]
[1680342313936,20.0,21.046,21.033,118.66]
[1680342314240,27.15156067,21.046,21.033,118.66]
[1680342314438,7.15156067,21.045,21.033,118.66]
[1680342314645,30.0,21.044,21.033,118.66]
[1680342315238,30.0,21.044,21.034,17.0]
[1680342315537,20.0,21.044,21.035,10.0]
[1680342315732,20.0,21.044,21.036,17.0]
[1680342316134,20.0,21.044,21.032,113.0303]
[1680342316445,26.75,21.04,21.033,17.0]
[1680342316625,26.75,21.04,21.033,27.0]
[1680342317527,26.75,21.04,21.034,10.0]
[1680342317723,26.75,21.04,21.035,17.0]
[1680342317934,111.3354,21.043,21.035,17.0]
[1680342318137,20.0,21.042,21.035,17.0]
[1680342330172,20.0,21.042,21.034,17.0]
[1680342330383,26.9,21.04,21.034,17.0]
[1680342335959,24.4,21.04,21.034,17.0]
[1680342336574,20.0,21.042,21.034,17.0]
[1680342349986,111.3354,21.043,21.034,17.0]
[1680342361192,53.55,21.05,21.035,10.0]
[1680342361382,53.55,21.05,21.036,17.0]
[1680342361582,17.15156067,21.049,21.036,17.0]
[1680342362276,17.15156067,21.049,21.032,109.6669]
[1680342362473,26.9,21.04,21.028,10.0]
[1680342363679,26.9,21.04,21.032,17.0]
[1680342366694,53.77,21.04,21.028,10.0]
[1680342367477,21.54,21.04,21.028,10.0]
[1680342367799,21.54,21.04,21.03,17.0]
[1680342368095,21.54,21.04,21.031,10.0]
[1680342368290,21.54,21.04,21.032,17.0]
[1680342376610,21.54,21.04,21.03,17.0]
[1680342396126,21.54,21.04,21.031,10.0]
[1680342396309,21.54,21.04,21.032,17.0]
[1680342409544,21.53,21.04,21.032,17.0]
[1680342419353,21.53,21.04,21.024,10.0]
[1680342419537,10.0,21.039,21.023,10.0]
[1680342420435,21.53,21.03,21.023,10.0]
[1680342420849,21.53,21.03,21.024,17.0]
[1680342426752,21.53,21.03,21.022,19.026185]
[1680342428240,21.53,21.03,21.023,17.0]
[1680342428440,21.53,21.03,21.024,10.0]
[1680342428640,21.53,21.03,21.025,17.0]
[1680342429052,21.53,21.03,21.022,19.026185]
[1680342429660,21.53,21.03,21.023,10.0]
[1680342430360,21.53,21.03,21.025,10.0]
[1680342430666,21.53,21.03,21.026,17.0]
[1680342430857,10.0,21.039,21.026,17.0]
[1680342431047,10.0,21.039,21.022,19.026185]
[1680342431248,21.53,21.03,21.023,17.0]
[1680342433764,21.53,21.03,21.022,10.0]
[1680342433944,21.53,21.03,21.023,17.0]
[1680342436355,21.53,21.03,21.017,10.0]
[1680342437566,21.53,21.03,21.019,17.0]
[1680342452357,21.53,21.03,21.015,51.31687528]
[1680342452557,10.0,21.029,21.011,10.0]
[1680342452767,21.53,21.02,21.011,10.0]
[1680342454066,21.53,21.02,21.014,10.0]
[1680342454271,21.53,21.02,21.015,17.0]
[1680342454459,10.0,21.029,21.015,17.0]
[1680342454972,10.0,21.029,21.016,10.0]
[1680342455158,10.0,21.029,21.017,17.0]
[1680342456369,21.53,21.03,21.017,17.0]
[1680342457062,21.53,21.03,21.018,10.0]
[1680342457262,21.53,21.03,21.02,10.0]
[1680342457474,21.53,21.03,21.021,17.0]
[1680342461075,21.53,21.03,21.022,10.0]
[1680342461269,21.53,21.03,21.024,10.0]
[1680342461475,21.53,21.03,21.025,17.0]
[1680342462365,26.92,21.03,21.025,17.0]
[1680342462884,26.92,21.03,21.023,17.0]
[1680342466968,26.92,21.03,21.021,17.0]
[1680342467161,26.92,21.03,21.019,17.0]
[1680342476986,53.85,21.03,21.019,17.0]
[1680342478591,10.0,21.029,21.019,17.0]
[1680342479772,10.0,21.029,21.02,17.0]
[1680342479976,53.85,21.03,21.018,10.0]
[1680342480291,53.85,21.03,21.019,17.0]
[1680342497491,53.85,21.03,21.018,10.0]
[1680342497691,53.85,21.03,21.019,17.0]
[1680342502203,53.85,21.03,21.012,119.0814]
[1680342502388,26.83,21.02,21.013,19.034267]
[1680342502588,10.0,21.019,21.013,19.034267]
[1680342503689,10.0,21.019,21.014,17.0]
[1680342505297,53.76,21.02,21.014,17.0]
[1680342506808,10.0,21.019,21.014,17.0]
[1680342508703,10.0,21.019,21.006,10.0]
[1680342508908,10.0,21.019,21.007,17.0]
[1680342509898,10.0,21.019,21.003,120.344]
[1680342511096,10.0,21.019,21.006,10.0]
[1680342511409,10.0,21.019,21.007,17.0]
[1680342511894,10.0,21.019,21.005,19.041883]
[1680342512101,26.93,21.01,21.005,19.041883]
[1680342512291,26.93,21.01,21.006,17.0]
[1680342512612,10.0,21.017,21.006,17.0]
[1680342512795,20.0,21.016,21.006,17.0]
[1680342512993,20.0,21.018,21.006,17.0]
[1680342513192,20.0,21.018,21.007,10.0]
[1680342513401,10.0,21.017,21.006,17.0]
[1680342513708,20.0,21.016,21.007,10.0]
[1680342513902,20.0,21.016,21.008,17.0]
[1680342514491,19.88335801,21.016,21.008,17.0]
[1680342515386,10.0,21.019,21.008,17.0]
[1680342516607,20.0,21.018,21.008,17.0]
[1680342519209,20.0,21.018,21.008,17.0]
[1680342524714,10.0,21.018,21.008,17.0]
[1680342525016,20.0,21.017,21.008,17.0]
[1680342526212,20.0,21.017,21.007,17.0]
[1680342527717,30.0,21.019,21.007,17.0]
[1680342529421,20.0,21.019,21.008,10.0]
[1680342529625,20.0,21.019,21.009,17.0]
[1680342531029,20.0,21.019,21.004,10.0]
[1680342531228,21.42,21.01,21.005,17.0]
[1680342539429,21.42,21.01,21.006,10.0]
[1680342539623,4.0,21.018,21.007,17.0]
[1680342539815,4.0,21.018,21.008,9.0]
[1680342541018,4.0,21.018,21.007,17.0]
[1680342545226,4.0,21.018,21.004,10.0]
[1680342545533,21.48,21.01,21.0,17.27877234]
[1680342545727,21.48,21.01,21.004,27.0]
[1680342547129,21.48,21.01,21.0,10.0]
[1680342547323,21.48,21.01,21.004,17.0]
[1680342553327,21.48,21.01,21.003,17.0]
[1680342564833,21.48,21.01,20.999,138.772173]
[1680342565344,21.48,21.01,20.999,119.7246]
[1680342566138,21.48,21.01,21.0,17.0]
[1680342566341,21.48,21.01,21.001,10.0]
[1680342566536,21.48,21.01,21.002,17.0]
[1680342568441,21.48,21.01,21.001,17.0]
[1680342569450,21.48,21.01,21.002,10.0]
[1680342571944,21.48,21.01,21.001,17.0]
[1680342573659,21.48,21.01,21.002,10.0]
[1680342573961,21.48,21.01,21.004,10.0]
[1680342574140,21.48,21.01,21.002,10.0]
[1680342576149,21.48,21.01,21.004,10.0]
[1680342576856,21.48,21.01,21.003,17.0]
[1680342579361,21.48,21.01,20.999,119.7246]
[1680342579362,21.48,21.01,20.98,21.43]
[1680342579550,21.48,21.01,20.989,111.6551]
[1680342579860,21.42,21.0,20.993,10.0]
[1680342581569,21.42,21.0,20.995,10.0]
[1680342581753,10.0,21.009,20.997,10.0]
[1680342581960,10.0,21.009,20.998,17.0]
[1680342582260,21.42,21.01,20.998,17.0]
[1680342589959,21.42,21.01,20.999,10.0]
[1680342590174,21.42,21.01,21.0,17.0]
[1680342596764,21.42,21.01,20.998,17.0]
[1680342601584,21.42,21.01,20.999,10.0]
[1680342601779,21.42,21.01,21.0,17.0]
[1680342601966,21.42,21.01,21.001,10.0]
[1680342602169,21.42,21.01,21.002,17.0]
[1680342602368,26.97,21.01,21.002,17.0]
[1680342606674,26.97,21.01,21.0,17.0]
[1680342613400,4.0,21.018,21.002,4.5004531]
[1680342613697,4.0,21.018,21.003,17.0]
[1680342613994,4.0,21.018,21.004,10.0]
[1680342614296,4.0,21.018,21.005,17.0]
[1680342614481,4.0,21.018,21.006,10.0]
[1680342614681,4.0,21.018,21.007,17.0]
[1680342614995,4.0,21.018,21.008,10.0]
[1680342615190,4.0,21.018,21.01,10.0]
[1680342615378,4.0,21.018,21.011,17.0]
[1680342621597,4.0,21.018,21.01,10.0]
[1680342621899,4.0,21.018,21.011,17.0]
[1680342623295,53.75,21.03,21.012,10.0]
[1680342623494,53.75,21.03,21.013,17.0]
[1680342623801,26.8,21.03,21.013,17.0]
[1680342624286,26.8,21.03,21.014,10.0]
[1680342624598,26.8,21.03,21.015,17.0]
[1680342624783,26.8,21.03,21.016,10.0]
[1680342624989,26.8,21.03,21.017,17.0]
[1680342625281,26.8,21.03,21.018,10.0]
[1680342625486,26.8,21.03,21.019,17.0]
[1680342645619,26.8,21.03,21.014,10.0]
[1680342645797,53.7,21.03,21.014,10.0]
[1680342645998,10.0,21.029,21.014,10.0]
[1680342647019,10.0,21.029,21.016,10.0]
[1680342647310,10.0,21.029,21.017,17.0]
[1680342656115,10.0,21.029,21.015,17.0]
[1680342658322,53.7,21.03,21.016,10.0]
[1680342658503,53.7,21.03,21.017,17.0]
[1680342658918,10.0,21.029,21.017,17.0]
[1680342659319,10.0,21.029,21.014,10.0]
[1680342659515,10.0,21.029,21.013,10.0]
[1680342660829,10.0,21.029,21.014,17.0]
[1680342666222,26.97,21.02,21.014,17.0]
[1680342666925,26.97,21.02,21.01,131.683054]
[1680342667128,53.87,21.02,21.01,19.036254]
[1680342667518,21.57,21.02,21.01,19.036254]
[1680342669718,27.0,21.019,21.01,19.036254]
[1680342669913,10.0,21.019,21.01,19.036254]
[1680342670323,17.0,21.018,21.01,19.036254]
[1680342670516,10.0,21.019,21.01,19.036254]
[1680342672042,21.57,21.02,21.01,19.036254]
[1680342672220,21.57,21.02,21.011,17.0]
[1680342672538,53.94,21.02,21.011,17.0]
[1680342679747,68.08371497,21.02,21.011,17.0]
[1680342706875,41.11371497,21.02,21.011,17.0]
[1680342707265,41.11371497,21.02,21.009,17.0]
[1680342707784,41.11371497,21.02,21.01,10.0]
[1680342708081,41.11371497,21.02,21.011,17.0]
[1680342720788,41.11371497,21.02,21.012,17.0]
[1680342721300,41.11371497,21.02,21.011,17.0]
[1680342727098,41.11371497,21.02,21.009,17.0]